Cogmind - Beta 13 X2 @@@ ROGUE MODE // 2024.01.25 @ 15:26:20 Player: Boris Result: Destroyed by G-47 Trooper with Particle Gun Performance ------------- Evolutions (0) 0 Regions Visited (4) 800 Robots Destroyed (17) 85 Value Destroyed (327) 327 Prototype IDs (24) 480 Alien Tech Used (0) 0 Bonus (399) 399 TOTAL SCORE: 2091 Bonus ------- Follower Combat Kills 99 Aligned with FarCom 300 Cogmind --------- Core Integrity 0/250 Matter 217/300 Energy 250/250 System Corruption 5% Temperature Cool (9) Movement Hovering (150) Ox1 Location -9/Mines Parts ------- > --- POWER (1) -------- Ion Engine > --- PROPULSION (2) --- Combat Airjet > --- UTILITY (2) ------ Small Storage Unit Chronowheel > --- WEAPON (2) ------- Light Assault Rifle Grenade Launcher > --- INVENTORY (8) ---- Improved Heat Sink High-capacity Storage Unit Faulty Experimental Sensor Array Assault Rifle Light Assault Rifle Light Assault Rifle Peak State ------------ > --- POWER ------------ Ion Engine > --- PROPULSION ------- Combat Airjet > --- UTILITY ---------- Small Storage Unit Chronowheel > --- WEAPON ----------- Light Assault Rifle Grenade Launcher > --- INVENTORY -------- Improved Heat Sink High-capacity Storage Unit Experimental Sensor Array Assault Rifle Light Assault Rifle Light Assault Rifle [Rating: 23] Favorites ----------- Power Ion Engine Engine Ion Engine Propulsion Light Treads Treads Light Treads Hover Unit Combat Airjet Utility Small Storage Unit Device Seismic Detector Storage Small Storage Unit Weapon Light Assault Rifle Energy Gun Particle Gun Ballistic Gun Light Assault Rifle Launcher Grenade Launcher Build | -11 -10 -10 -10 -9 ------- Run | Yrd Mat Min Exi Min Slots Evolved . | . . . . . Power . | . . . . . Propulsion . | . . . . . Utility . | . . . . . Weapon . | . . . . . Parts Attached 25 | 8 2 11 . 4 Power 4 | 2 . 2 . . Engine 4 | 2 . 2 . . Core . | . . . . . Reactor . | . . . . . Propulsion 3 | 2 . 1 . . Treads 2 | 2 . . . . Leg . | . . . . . Wheel . | . . . . . Hover 1 | . . 1 . . Flight . | . . . . . Utility 7 | 2 . 4 . 1 Device 6 | 1 . 4 . 1 Storage 1 | 1 . . . . Processor . | . . . . . Hackware . | . . . . . Protection . | . . . . . Artifact . | . . . . . Weapon 11 | 2 2 4 . 3 Energy Gun 1 | . . 1 . . Energy Cannon . | . . . . . Ballistic Gun 5 | 2 1 1 . 1 Ballistic Cannon . | . . . . . Launcher 5 | . 1 2 . 2 Special Weapon . | . . . . . Impact Weapon . | . . . . . Slashing Weapon . | . . . . . Piercing Weapon . | . . . . . Special Melee Weapon . | . . . . . Unidentified Prototypes 1 | . . 1 . . Parts Lost 4 | . . 3 . 1 Power 1 | . . 1 . . Propulsion 2 | . . 1 . 1 Utility 1 | . . 1 . . Weapon . | . . . . . Highest Loss Streak 2 | . . 2 . 1 To Critical Strikes . | . . . . . Average Slot Usage (%) 88 | . 100 94 71 71 Engine 13 | . 14 13 14 14 Treads 20 | . 28 23 14 . Hover 4 | . . . 14 14 Device 13 | . 14 13 14 14 Storage 14 | . 14 14 14 14 Energy Gun 1 | . . 2 . . Ballistic Gun 17 | . 27 23 . 10 Launcher 1 | . . 1 . 4 Naked Turns . | . . . . . Heaviest Build 16 | 12 13 16 11 12 Greatest Support 40 | 40 40 40 20 12 Greatest Overweight (x) . | . . . . . Average Overweight (x) . | . . . . . Largest Inventory Capacity 8 | 8 8 8 8 8 Average Capacity 7 | 5 8 8 8 8 Most Carried 8 | 4 6 8 8 8 Average Carried 6 | 2 4 7 7 7 Final Capacity 8 | 8 8 8 8 8 Final Carried 8 | 2 6 8 8 6 Class Distribution -------------------- 100% | Mutant Dominant Class ---------------- Mutant | -10/Materials Mutant | -10/Mines Mutant | -10/Exiles Mutant | -9/Mines Resources | -11 -10 -10 -10 -9 ----------- Run | Yrd Mat Min Exi Min Matter Collected 874 | 289 152 249 171 13 Remotely . | . . . . . Salvage Created 486 | 81 207 116 . 82 Parts 30 | 3 11 8 . 8 Haulers Intercepted . | . . . . . Recyclers Shooed . | . . . . . Parts Field Recycled . | . . . . . Retrieved Matter . | . . . . . Parts Self-Destructed . | . . . . . Prevented . | . . . . . Kills | -11 -10 -10 -10 -9 ------- Run | Yrd Mat Min Exi Min Combat Hostiles Destroyed 18 | . 5 8 . 5 Guns 5 | . 3 2 . . AOE 13 | . 2 6 . 5 Classes Destroyed 6 | 2 2 2 . . Builder 1 | . . 1 . . Tunneler 1 | 1 . . . . Recycler 3 | 1 1 . . 1 Swarmer 6 | . 2 . . 4 Grunt 6 | . 3 2 . 1 Assembled 6 | . . 6 . . Best Kill Streak 6 | 1 3 6 . 4 Combat Bots Only 6 | . 3 6 . 4 Max Kills in Single Turn 3 | 1 2 1 . 3 Gunslinging . | . . . . . Exploded 3 | . 2 1 . 3 Melee . | . . . . . Uniques/NPCs Destroyed . | . . . . . Combat | -11 -10 -10 -10 -9 -------- Run | Yrd Mat Min Exi Min Hostile Shots Fired 61 | . 23 28 . 10 Missed 18 | . 4 8 . 6 Damage Taken 910 | . 213 645 . 52 Core 253 | . 54 175 . 24 Absorbed by Shields . | . . . . . Core Remaining (%) 100 | 100 . . . . Volleys Fired 51 | 7 14 25 . 5 Largest 2 | 2 2 2 . 1 Hottest 85 | 40 40 85 . 30 Shots Fired 91 | 14 27 45 . 5 Gun 74 | 14 26 34 . . Cannon . | . . . . . Launcher 17 | . 1 11 . 5 Special . | . . . . . Kinetic 72 | 14 26 32 . . Thermal 2 | . . 2 . . Explosive 17 | . 1 11 . 5 Electromagnetic . | . . . . . Robot Hit Streak 12 | 8 12 7 . 2 Robot Miss Streak 3 | 1 3 2 . 3 Penetration Max . | . . . . . Secondary Targets . | . . . . . Shots Hit Robots 55 | 10 21 22 . 2 Core Hits 45 | 4 11 19 . 11 Critical Kills . | . . . . . Critical Parts Destroyed . | . . . . . Critical Strikes . | . . . . . Melee Attacks . | . . . . . Impact . | . . . . . Slashing . | . . . . . Piercing . | . . . . . Sneak Attacks . | . . . . . Combat Hostiles . | . . . . . Follow-up Attacks . | . . . . . Damage Inflicted 1322 | 98 280 544 . 400 Guns 414 | 96 172 146 . . Cannons . | . . . . . Explosions 899 | . 103 396 . 400 Melee . | . . . . . Ramming 9 | 2 5 2 . . Kinetic 414 | 96 172 146 . . Thermal . | . . . . . Explosive 899 | . 103 396 . 400 Electromagnetic . | . . . . . Impact . | . . . . . Slashing . | . . . . . Piercing . | . . . . . Highest Corruption 5 | . . 5 5 5 Average Corruption 5 | . . 5 5 5 Corruption Purged . | . . . . . Corruption Blocked . | . . . . . Effects 18 | . . 8 8 2 Message Errors 4 | . . 1 3 . Matter Fused 8 | . . 3 3 2 Heat Flow Errors 4 | . . 2 2 . Energy Discharges 1 | . . 1 . . Data Loss (major) 1 | . . 1 . . Overload Shots . | . . . . . Overflow Damage 3 | . 3 . . . Projectiles . | . . . . . Explosions 3 | . 3 . . . Melee . | . . . . . Knockbacks . | . . . . . Impact . | . . . . . Kinetic . | . . . . . Secondary . | . . . . . Self-Inflicted Damage 39 | . 29 . . 10 Shots 2 | . 1 . . 1 Rammed 2 | 1 1 . . . Targets Rammed 3 | 1 1 1 . . Kicked . | . . . . . Crushed 1 | . . 1 . . Highest Temperature 188 | . 12 188 147 4 Average Temperature 41 | . 7 46 78 4 Received Heat Transfer 171 | . 66 87 . 18 Siege Activations . | . . . . . Robots Corrupted . | . . . . . Combat Hostiles . | . . . . . Parts Fried . | . . . . . Impact Corruptions . | . . . . . Robots Melted . | . . . . . Combat Hostiles . | . . . . . Parts Melted . | . . . . . Heat Transferred . | . . . . . Parts Sabotaged . | . . . . . Parts Stolen . | . . . . . Parts Stripped . | . . . . . Power Chain Reactions . | . . . . . Missiles Intercepted . | . . . . . Alert | -11 -10 -10 -10 -9 ------- Run | Yrd Mat Min Exi Min Peak Influence 188 | 10 188 119 . 186 Initial 73 | . 6 73 . . Average 85 | 4 121 80 . 121 Maximum Alert Level . | . . . . . Low Security (%) 100 | 100 100 100 . 100 Level 1 . | . . . . . Level 2 . | . . . . . Level 3 . | . . . . . Level 4 . | . . . . . Level 5 . | . . . . . High Security . | . . . . . Max Security . | . . . . . Squads Dispatched 1 | . 1 . . . Investigation 1 | . 1 . . . Extermination . | . . . . . Reinforcement . | . . . . . Assault . | . . . . . Garrison . | . . . . . Intercept . | . . . . . Searches Triggered . | . . . . . Construction Impeded . | . . . . . Haulers Reinforced . | . . . . . Active Scanning Responses . | . . . . . Cargo Convoy Interrupts . | . . . . . Stealth | -11 -10 -10 -10 -9 --------- Run | Yrd Mat Min Exi Min Distress Signals 2 | . 1 . . 1 Communications Jammed . | . . . . . Distress Signals . | . . . . . Times Spotted 27 | . 9 12 . 6 Peak Tracking Total 4 | . 4 2 . 4 Tactical Retreats 1 | . . . . 1 Traps | -11 -10 -10 -10 -9 ------- Run | Yrd Mat Min Exi Min Traps Triggered . | . . . . . Indirectly . | . . . . . Trap Hack Attempts . | . . . . . Triggered . | . . . . . Disarmed . | . . . . . Reprogrammed . | . . . . . Reused . | . . . . . Traps Extracted . | . . . . . Installed . | . . . . . Triggered . | . . . . . Machines | -11 -10 -10 -10 -9 ---------- Run | Yrd Mat Min Exi Min Machines Disabled 2 | . 1 . . 1 Max in Single Turn 1 | . 1 . . 1 Machines Repaired . | . . . . . Machines Dismantled . | . . . . . Machines Sabotaged . | . . . . . Overloaded Fab Kills . | . . . . . Hacking | -11 -10 -10 -10 -9 --------- Run | Yrd Mat Min Exi Min Machines Accessed 3 | . 1 . 2 . Terminals . | . . . . . Fabricators . | . . . . . Repair Stations . | . . . . . Recycling Units 1 | . 1 . . . Scanalyzers . | . . . . . Garrison Access . | . . . . . Total Hacks 4 | . 2 . 2 . Successful 4 | . 2 . 2 . Failed . | . . . . . Catastrophic . | . . . . . Database Lockouts . | . . . . . Manual 2 | . 1 . 1 . Terminals . | . . . . . Fabricators . | . . . . . Repair Stations . | . . . . . Recycling Units 2 | . 2 . . . Scanalyzers . | . . . . . Garrison Access . | . . . . . Terminal Hacks 2 | . . . 2 . Record 1 | . . . 1 . Derelict Proto ID Bank 1 | . . . 1 . Fabricator Hacks . | . . . . . Repair Station Hacks . | . . . . . Recycling Unit Hacks 1 | . 1 . . . Report Inventory 1 | . 1 . . . Scanalyzer . | . . . . . Garrison Access Hacks . | . . . . . Unauthorized Hacks 1 | . 1 . . . Terminals . | . . . . . Fabricators . | . . . . . Repair Stations . | . . . . . Recycling Units 1 | . 1 . . . Tunnel 1 | . 1 . . . Scanalyzers . | . . . . . Garrison Access . | . . . . . Data Cores Recovered . | . . . . . Used . | . . . . . Hacking Detections . | . . . . . Full Trace Events . | . . . . . Feedback Events . | . . . . . Feedback Blocked . | . . . . . Robot Schematics Acquired . | . . . . . Robots Built . | . . . . . Authchips . | . . . . . Time . | . . . . . Total Robot Build Rating . | . . . . . Part Schematics Acquired . | . . . . . Parts Built . | . . . . . Authchips . | . . . . . Time . | . . . . . Total Part Build Rating . | . . . . . Parts Repaired . | . . . . . Time . | . . . . . Parts Recycled . | . . . . . Recycled Matter . | . . . . . Retrieved Matter . | . . . . . Retrieved Components . | . . . . . Parts Scanalyzed . | . . . . . Part Schematics Acquired . | . . . . . Parts Damaged . | . . . . . Bothacking | -11 -10 -10 -10 -9 ------------ Run | Yrd Mat Min Exi Min Used RIF Installer . | . . . . . Robots Hacked . | . . . . . Non-combat . | . . . . . Combat . | . . . . . Robot Hacks Applied . | . . . . . Relay Couplers Released . | . . . . . Fabnet Peak Effective % . | . . . . . Robots Rewired . | . . . . . Allies Hacked . | . . . . . Hacks Repelled . | . . . . . Allies | -11 -10 -10 -10 -9 -------- Run | Yrd Mat Min Exi Min Total Allies 5 | . . 5 . . Largest Group 5 | . . 5 . . Highest-Rated Group 86 | . . 86 . . Highest-Rated Ally 31 | . . 31 . . Total Orders . | . . . . . Ally Attacks 20 | . . 20 . . Total Damage 212 | . . 212 . . Kills 4 | . . 4 . . Allies Corrupted . | . . . . . Allies Melted . | . . . . . Intel | -11 -10 -10 -10 -9 ------- Run | Yrd Mat Min Exi Min Robot Analysis Total . | . . . . . Derelict Logs Recovered 1 | . . 1 . . Drone Launches . | . . . . . Drone Recoveries . | . . . . . Exploration | -11 -10 -10 -10 -9 ------------- Run | Yrd Mat Min Exi Min Turns Passed 1400 | 92 244 686 313 65 Spaces Moved 875 | 63 108 372 286 46 Core 40 | 40 . . . . Treads 542 | 23 108 372 39 . Legs . | . . . . . Wheels . | . . . . . Hover 293 | . . . 247 46 Flight . | . . . . . Fastest Speed 50 | 50 160 160 100 80 Average Speed 133 | 90 160 160 108 80 Slowest Speed 160 | 160 160 160 160 80 Overloaded Moves . | . . . . . Propulsion Burnouts . | . . . . . Robots Hopped . | . . . . . Cave-ins Triggered 1 | . . 1 . . Exploration Rate (%) 34 | 4 17 78 61 13 Regions Visited 4 Branch Regions 3 Pre-discovered Areas 2 | . 1 . 1 . Known Exits Taken . | . . . . . Unknown Exits Taken 4 | 1 1 1 1 . Scrap Searched 1 | . . 1 . . Spaces Dug 10 | . . 10 . . Terrain Destroyed 75 | . 6 43 . 26 Melee . | . . . . . Projectile . | . . . . . AOE 75 | . 6 43 . 26 Terrain Rammed . | . . . . . Walls Destroyed . | . . . . . Machines Disabled . | . . . . . Actions | -11 -10 -10 -10 -9 --------- Run | Yrd Mat Min Exi Min Total 1020 | 82 156 421 291 70 Wait 45 | . 28 4 . 13 Move 871 | 62 107 371 285 46 Hop . | . . . . . Pick Up 13 | 4 3 3 3 . Fast Attach 10 | 5 1 3 . 1 Attach 7 | 2 . 3 . 2 Detach 5 | . 1 3 . 1 Swap 8 | 1 1 5 . 1 Drop 7 | . . 3 3 1 Fire 51 | 7 14 25 . 5 Melee . | . . . . . Ram . | . . . . . Kick . | . . . . . Crush 3 | 1 1 1 . . Escape Stasis . | . . . . . Rewire . | . . . . . Trap . | . . . . . Miscellaneous . | . . . . . Route ------- -11/Scrapyard -10/Materials -10/Mines (discovered 3 exits: [*Mat x2] / *Exi) -10/Exiles -9/Mines History --------- Turn | Location | Event 4 | -11/Scrapyard | Discovered new exit (range 16) 93 | -11/Scrapyard | Entered Materials 119 | -10/Materials | Discovered new exit (range 14) 313 | -10/Materials | Build established: Mutant 337 | -10/Materials | Entered Mines 509 | -10/Mines | Assisted by bots powering up and referring to "LRC-V3" 606 | -10/Mines | Found a damaged Exp. Sensor Array with a note attached 610 | -10/Mines | Found Prototype Device 610 | -10/Mines | Identified Exp. Sensor Array 739 | -10/Mines | Learned Materials emergency access door positions 750 | -10/Mines | Discovered new exit (range 7) 800 | -10/Mines | Assembled infested the area 805 | -10/Mines | Assisted by a Guerilla fighting off Assembled 814 | -10/Mines | Discovered new exit (range 10) 828 | -10/Mines | Crushed by falling debris 828 | -10/Mines | Core integrity fell below 50% 828 | -10/Mines | Core integrity fell below 20% 843 | -10/Mines | Lost 4 allies 1011 | -10/Mines | Deemed a non-threat by the Exiles lab entrance 1013 | -10/Mines | Discovered new exit (range 5) 1023 | -10/Mines | Entered Exiles 1068 | -10/Exiles | Met 8R-AWN 1089 | -10/Exiles | Met EX-HEX 1120 | -10/Exiles | Met EX-BIN 1133 | -10/Exiles | Met EX-DEC 1137 | -10/Exiles | Learned location of Zion (-7) 1169 | -10/Exiles | Aligned with FarCom system 1170 | -10/Exiles | Given EX-Vault access code 1194 | -10/Exiles | Opened EX-Vault 1200 | -10/Exiles | Found Chronowheel 1222 | -10/Exiles | Warned to stay clear of 0b10 Research branches 1324 | -10/Exiles | Discovered new exit (range 14) 1336 | -10/Exiles | Left Exiles lab with Chronowheel 1336 | -10/Exiles | Entered Mines 1395 | -9/Mines | Activated Chronowheel 1401 | -9/Mines | Destroyed by G-47 Trooper with Particle Gun Last Messages --------------- 01360_ U-05 Engineer lays Concrete. 01361_ U-05 Engineer builds a Wall. 01365_ U-05 Engineer lays Concrete. 01369_ R-06 Scavenger collects Flight Unit. 01371_ U-05 Engineer lays Concrete. 01373_ System corrupted: Matter fused (-6). 01373_ U-05 Engineer lays Concrete. 01373_ R-06 Scavenger collects Lgt. Ion Engine. 01374_ U-05 Engineer lays Concrete. 01390_ Dropped Rigged Lgt. Fission Core. 01390_ U-05 Engineer lays Concrete. 01391_ R-06 Scavenger collects Rigged Lgt. Fission Core. 01392_ U-05 Engineer lays Concrete. 01395_ Spacetime feels off. 01395_ U-05 Engineer lays Concrete. 01396_ R-06 Scavenger destroyed. 01397_ U-05 Engineer lays Concrete. 01397_ T-07 Excavator sends out distress signal. 01397_ U-05 Engineer builds a Wall. 01398_ U-05 Engineer lays Concrete. Map ----- +----------------------------------------------------+ | ?????????????????????????????? | | ?????????????????????????????? | | ?????????????????????????????? | | ?????????????????????????????? | | ?????????????????????????????? | | ?????????????????????????????? | | ?????????????????????????????? | | ?????????????????????????????? | | ?????????????????????????????? | | ?????????????????????????????? | | ?????????????????????????????? | | ?????????????????????????????? | | ?????????????????????????????? | | ?????????????????????????????? | | ?##########??????????????????? | | ?# #??????????????????? | | ?# ###????????????????? | | ?# # ###??????????????? | | ?# ##???? ?????? | | ?# ## #?????? | | ?# #??????? | | ?# !g #????????? | | ?#u %* ##????????? | | ?# ????##?????????? | | ## # #????????????????? | | ## %@ # #????????????????? | | ## """ # #????????????????? | | ?# u # #????????????????? | | ?####### # #????????????????? | | ??????##### #????????????????? | | ??????## ##???????????????? | | ??????# #???????????????? | | ?????# #???????????????? | | ????# #???????????????? | | ???# ???????????????? | | ???# ??????????????? | | ???# ?????????????? | | ???## #?????????????? | | ????### ##?????????????? | | ??????## ##??????????????? | | ???????# ##???????????????? | | ???????# ##?????????????????? | | ???????# ???????????????????? | | ???????# ???????????????????? | | ???????# ???????????????????? | | ??????? ????????????????????? | | ???????? ????????????????????? | | ?????????????????????????????? | | ?????????????????????????????? | | ?????????????????????????????? | +----------------------------------------------------+ Best States ------------- Heat Dissipation 39 Energy Generation 10 Energy Capacity 250 Matter Stores 300 Matter Capacity 300 Sight Range 16 Terrain Scan Density 10 Evasion (%) 50 Recoil Reduction 2 Item Schematics ----------------- None Robot Schematics ------------------ None Fabricated ------------ Nothing Alien Tech Used ----------------- None Achievements -------------- None Challenges ------------ None Game ------ Seed AluminumInsulatedScreen Manual? 0 Play Time 00:10:19 Cumulative 465.3 hours Start 2024.01.25 @ 15:08:22 End 2024.01.25 @ 15:26:20 Sessions 1 Manual Loads 0 Difficulty Rogue Special Mode None Game No. 167 Rogue 152 Adventurer 15 Explorer 0 Win Type - Total 30 Types 8/3/8/2/2/0/4/2/1 Lore% 91 Gallery% 93 Achievement% 83 Wizard Run 0 Options --------- ASCII 0 Keyboard 0 Movement Numpad Keybinds 0 Fullscreen 1 Font 18/SmallcapsGlow Map View 76x50 Zoom Use 0% Tactical HUD 1 Map Filters NONE Filters NONE Steam 1 RUN: 1e04566f-7426-466e-be49-a02ca45a57c9